bitfinex/quotes_BTCUSD_20250512
["timestamp","ask_amount","ask_price","bid_price","bid_amount"]
[1747025666401,0.05287981,103990.0,103980.0,2.13561799]
[1747025666590,0.03364841,103990.0,103980.0,2.13369484]
[1747025667020,0.03364841,103990.0,103980.0,2.53369484]
[1747025667213,0.05287963,103990.0,103980.0,2.53369484]
[1747025667461,0.05287954,103990.0,103980.0,2.53369484]
[1747025667668,0.06249529,103990.0,103980.0,2.53369484]
[1747025668522,0.07311122,103990.0,103980.0,2.53369484]
[1747025668725,0.06349529,103990.0,103980.0,2.53369484]
[1747025669170,0.06449529,103990.0,103980.0,2.53369484]
[1747025672924,0.07411132,103990.0,103980.0,2.53369484]
[1747025673133,0.07411122,103990.0,103980.0,2.53369484]
[1747025673565,0.07411122,103990.0,103980.0,2.38799041]
[1747025674068,0.07411187,103990.0,103980.0,1.2932214]
[1747025674303,0.06449575,103990.0,103980.0,1.35432441]
[1747025674530,0.07411178,103990.0,103980.0,1.35432441]
[1747025674966,0.06449575,103990.0,103980.0,1.35432441]
[1747025677385,0.06449575,103990.0,103980.0,0.87738701]
[1747025677597,0.06449575,103990.0,103980.0,0.93509041]
[1747025677796,0.06449575,103990.0,103980.0,0.95432441]
[1747025678428,0.06449575,103990.0,103980.0,1.35432441]
[1747025679701,0.07411187,103990.0,103980.0,1.35432441]
[1747025683611,0.26643805,103990.0,103980.0,1.34470783]
[1747025683809,0.26643805,103990.0,103980.0,1.3543246]
[1747025684014,0.26643805,103990.0,103980.0,1.36394127]
[1747025686069,0.27605426,103990.0,103980.0,1.36394127]
[1747025686482,0.27605426,103990.0,103980.0,1.21823684]
[1747025686643,0.27605426,103990.0,103980.0,1.36394127]
[1747025686854,0.08372808,103990.0,103980.0,1.37355785]
[1747025688712,0.08372808,103990.0,103980.0,1.51926228]
[1747025688921,0.2760549,103990.0,103980.0,1.36394127]
[1747025689137,0.08372872,103990.0,103980.0,1.37355785]
[1747025690858,0.07411242,103990.0,103980.0,1.37355785]
[1747025691740,0.2664386,103990.0,103980.0,1.36394127]
[1747025691949,0.07411242,103990.0,103980.0,1.37355785]
[1747025694121,0.06449621,103990.0,103980.0,1.37355785]
[1747025694515,0.06449621,103990.0,103980.0,1.51926228]
[1747025698112,0.06459612,103990.0,103980.0,1.51926228]
[1747025699025,0.07421224,103990.0,103980.0,1.51926228]
[1747025700045,0.06459612,103990.0,103980.0,1.51926228]
[1747025700661,0.05498009,103990.0,103980.0,1.51926228]
[1747025700851,0.06459621,103990.0,103980.0,1.51926228]
[1747025701049,0.05498009,103990.0,103980.0,1.51926228]
[1747025701248,0.06459621,103990.0,103980.0,1.51926228]
[1747025702510,0.00404841,103990.0,103980.0,1.51926228]
[1747025702718,0.01366388,103990.0,103980.0,1.51926228]
[1747025703363,0.01366388,103990.0,103980.0,1.85926228]
[1747025703785,0.00404841,103990.0,103980.0,1.85926228]
[1747025703925,0.01366388,103990.0,103980.0,1.85926228]
[1747025705855,0.00404841,103990.0,103980.0,1.85926228]
[1747025706076,0.00404841,103990.0,103980.0,2.03666671]
[1747025706280,0.00304841,103990.0,103980.0,1.89096228]
[1747025706482,0.00404841,103990.0,103980.0,1.89296228]
[1747025707071,0.00504841,103990.0,103980.0,1.89396228]
[1747025709725,0.00504841,103990.0,103980.0,1.71402504]
[1747025717010,0.00504841,103990.0,103980.0,1.95558377]
[1747025717777,0.00404841,103990.0,103980.0,1.95358377]
[1747025717997,0.00504841,103990.0,103980.0,1.95758377]
[1747025718796,0.00304841,103990.0,103980.0,1.95658377]
[1747025718994,0.00304841,103990.0,103980.0,1.81087934]
[1747025719201,0.00404841,103990.0,103980.0,1.95958377]
[1747025719820,1e-08,103990.0,103980.0,1.95958377]
[1747025722089,0.04996001,104000.0,103990.0,0.40731303]
[1747025722306,0.04996001,104000.0,103990.0,2.41753589]
[1747025722525,0.04996001,104000.0,103990.0,2.40233589]
[1747025722939,0.04996001,104000.0,103990.0,2.80233589]
[1747025723147,0.04996001,104000.0,103990.0,2.80333589]
[1747025723354,0.04996001,104000.0,103990.0,2.78823589]
[1747025723980,0.04996001,104000.0,103990.0,2.79023589]
[1747025724391,0.04996001,104000.0,103990.0,2.90291589]
[1747025726396,0.04295791,104000.0,103990.0,3.03077019]
[1747025726601,0.04295791,104000.0,103990.0,3.06427019]
[1747025726884,0.03142181,104000.0,103990.0,3.06427019]
[1747025727091,0.0115361,104000.0,103990.0,3.20997462]
[1747025727483,0.10810136,104030.0,104020.0,0.06729362]
[1747025727717,0.10810136,104030.0,104020.0,2.27641885]
[1747025727718,0.10858558,104030.0,104020.0,2.27641885]
[1747025727931,0.03238422,104030.0,104020.0,2.27449648]
[1747025728139,0.00048422,104030.0,104020.0,2.27449648]
[1747025728353,0.00048422,104030.0,104020.0,2.67449648]
[1747025728989,0.04269609,104030.0,104020.0,2.52879205]
[1747025729202,0.04269609,104030.0,104020.0,2.52979205]
[1747025729646,0.04269609,104030.0,104020.0,2.67549648]
[1747025729851,0.04269609,104030.0,104020.0,2.52979205]
[1747025730057,0.04269609,104030.0,104020.0,2.53079205]
[1747025730268,0.05230805,104030.0,104020.0,2.53079205]
[1747025730472,0.03308422,104030.0,104020.0,2.53079205]
[1747025730685,0.05230796,104030.0,104020.0,2.67649648]
[1747025730868,0.03308422,104030.0,104020.0,2.67649648]
[1747025731088,0.03308422,104030.0,104020.0,2.53079205]
[1747025731522,0.00048422,104030.0,104020.0,2.67649648]
[1747025731936,0.00048422,104030.0,104020.0,2.7153729]
[1747025732410,0.00048422,104030.0,104020.0,2.42396404]
[1747025732618,0.00048422,104030.0,104020.0,2.7153729]
[1747025733739,0.01598422,104030.0,104020.0,2.7153729]
[1747025733913,0.00048422,104030.0,104020.0,2.7153729]
[1747025735500,0.00048422,104030.0,104020.0,2.72999038]
[1747025737699,0.03218422,104030.0,104020.0,2.72999038]
[1747025738233,0.01598422,104030.0,104020.0,2.72999038]
[1747025741210,0.03168422,104030.0,104020.0,2.72999038]
[1747025746474,0.00048422,104030.0,104020.0,2.72999038]
[1747025746884,0.00048422,104030.0,104020.0,2.84255038]
[1747025748872,0.00048422,104030.0,104020.0,2.87305038]
[1747025749073,0.00048422,104030.0,104020.0,2.85755038]
[1747025749468,0.00048422,104030.0,104020.0,2.84255038]
[1747025754885,0.03258422,104030.0,104020.0,2.84255038]
[1747025755289,0.03258422,104030.0,104020.0,2.84145038]
[1747025764637,0.00048422,104030.0,104020.0,2.84145038]
[1747025765005,0.00048422,104030.0,104020.0,2.59651376]
[1747025765213,0.00048422,104030.0,104020.0,2.6349679]
[1747025765893,0.00048422,104030.0,104020.0,2.66380738]
[1747025766345,0.00048422,104030.0,104020.0,2.79316168]
[1747025767491,0.00048422,104030.0,104020.0,2.93886611]
[1747025767714,0.00048422,104030.0,104020.0,2.97096611]
[1747025768351,0.00048422,104030.0,104020.0,2.96996611]
[1747025768825,0.0332,104050.0,104040.0,0.69868955]
[1747025769010,0.03334523,104050.0,104040.0,2.09574055]
[1747025769449,0.04295516,104050.0,104040.0,2.09574055]
[1747025769655,0.04295516,104050.0,104040.0,2.49574055]
[1747025770305,0.03334523,104050.0,104040.0,2.49574055]
[1747025770950,0.04295525,104050.0,104040.0,2.49574055]
[1747025772232,0.04295525,104050.0,104040.0,2.49674055]
[1747025772453,0.04295516,104050.0,104040.0,2.49674055]
[1747025774412,0.03334523,104050.0,104040.0,2.49674055]
[1747025774593,0.04295525,104050.0,104040.0,2.49674055]
[1747025776795,0.04295525,104050.0,104040.0,2.20533169]
[1747025776999,0.05256545,104050.0,104040.0,2.35103612]
[1747025777412,0.06217593,104050.0,104040.0,2.35103612]
[1747025777665,0.04295525,104050.0,104040.0,2.29356612]
[1747025777872,0.06217593,104050.0,104040.0,2.29356612]
[1747025778726,0.06217584,104050.0,104040.0,2.29356612]
[1747025779318,0.06217584,104050.0,104040.0,2.43927055]
[1747025779933,0.05256545,104050.0,104040.0,2.43927055]
[1747025780138,0.06217584,104050.0,104040.0,2.43927055]
[1747025780358,0.06217584,104050.0,104040.0,2.29356612]
[1747025782926,0.07178641,104050.0,104040.0,2.29356612]
[1747025783127,0.06217584,104050.0,104040.0,2.29356612]
[1747025783339,0.06217584,104050.0,104040.0,2.12843112]
[1747025784331,0.06217584,104050.0,104040.0,2.27413555]
[1747025785313,0.07178641,104050.0,104040.0,2.27413555]
[1747025785500,0.06217584,104050.0,104040.0,2.27413555]
[1747025788000,0.07178641,104050.0,104040.0,2.27413555]
[1747025788537,0.06217584,104050.0,104040.0,2.27413555]
[1747025789874,0.25439214,104050.0,104040.0,0.66383268]
[1747025790084,0.24478175,104050.0,104040.0,0.450831]
[1747025790285,0.71122048,104050.0,104040.0,0.341]
[1747025790495,0.73250921,104050.0,104040.0,0.341]
[1747025790843,0.34738393,104050.0,104040.0,0.341]
[1747025791068,0.57226393,104050.0,104040.0,0.341]
[1747025791501,0.56551605,104050.0,104040.0,0.341]
[1747025791720,0.56851605,104050.0,104040.0,0.341]
[1747025791911,0.56851605,104050.0,104040.0,0.32874177]
[1747025792059,0.34363605,104050.0,104040.0,0.36618852]
[1747025792266,0.25078175,104050.0,104040.0,1.15119554]
[1747025792483,0.24778175,104050.0,104040.0,1.16080704]
[1747025792683,0.24678175,104050.0,104040.0,1.15980704]
[1747025793024,0.23917127,104050.0,104040.0,1.15980704]
[1747025793228,0.23917127,104050.0,104040.0,1.15019554]
[1747025793876,0.23917127,104050.0,104040.0,0.97776961]
[1747025794122,0.23917127,104050.0,104040.0,0.82245377]
[1747025794369,0.23917127,104050.0,104040.0,0.83206527]
[1747025794600,0.23917127,104050.0,104040.0,1.24167668]
[1747025794825,0.23917127,104050.0,104040.0,1.39699233]
[1747025795029,0.23917127,104050.0,104040.0,1.40660337]
[1747025795030,0.06617548,104050.0,104040.0,1.40660337]
[1747025795241,0.05656518,104050.0,104040.0,1.40660337]
[1747025795486,0.01575516,104050.0,104040.0,1.40660337]
[1747025795662,0.02536518,104050.0,104040.0,1.40660337]
[1747025795871,0.03497538,104050.0,104040.0,1.40660337]
[1747025796075,0.03497529,104050.0,104040.0,1.40660337]
[1747025796462,0.04458568,104050.0,104040.0,1.74660337]
[1747025797025,0.02536518,104050.0,104040.0,1.74660337]
[1747025797229,0.01575525,104050.0,104040.0,1.74660337]
[1747025797642,0.00614523,104050.0,104040.0,1.74660337]
[1747025797846,0.01575525,104050.0,104040.0,1.74660337]
[1747025798043,0.01575516,104050.0,104040.0,1.74660337]
[1747025798882,0.02536527,104050.0,104040.0,1.74660337]
[1747025799080,0.03497557,104050.0,104040.0,1.74660337]
[1747025799344,0.01575516,104050.0,104040.0,1.74660337]
[1747025799509,0.02536518,104050.0,104040.0,1.74660337]
[1747025799706,0.03497548,104050.0,104040.0,1.74660337]
[1747025799930,0.03497538,104050.0,104040.0,1.74660337]
[1747025800472,0.02536518,104050.0,104040.0,1.74660337]
[1747025801006,0.03497548,104050.0,104040.0,1.74660337]
[1747025801505,0.03497538,104050.0,104040.0,1.74660337]
[1747025802126,0.00614523,104050.0,104040.0,1.74660337]
[1747025803993,0.01575516,104050.0,104040.0,1.74660337]
[1747025804191,0.02536527,104050.0,104040.0,1.74660337]
[1747025804343,0.01575516,104050.0,104040.0,1.74660337]
[1747025804551,0.03235516,104050.0,104040.0,1.74660337]
[1747025805161,0.02835516,104050.0,104040.0,1.74660337]
[1747025805563,0.02835516,104050.0,104040.0,1.74760337]
[1747025806720,0.03796527,104050.0,104040.0,1.74760337]
[1747025806918,0.03796518,104050.0,104040.0,1.74760337]
[1747025807501,0.05346518,104050.0,104040.0,1.74760337]
[1747025808131,0.02136518,104050.0,104040.0,1.60189894]
[1747025808315,0.03696518,104050.0,104040.0,1.74760337]
[1747025808770,0.05296518,104050.0,104040.0,1.74760337]
[1747025809786,0.02136518,104050.0,104040.0,1.74760337]
[1747025812233,0.05296518,104050.0,104040.0,1.74760337]
[1747025813790,0.03696518,104050.0,104040.0,1.74760337]
[1747025814859,0.05346518,104050.0,104040.0,1.74760337]
[1747025815498,0.06307529,104050.0,104040.0,1.74760337]
[1747025818598,0.07268559,104050.0,104040.0,1.74760337]
[1747025818786,0.06307529,104050.0,104040.0,1.74760337]
[1747025820361,0.07268568,104050.0,104040.0,1.74760337]
[1747025820558,0.06307529,104050.0,104040.0,1.74760337]
[1747025821632,0.07268559,104050.0,104040.0,1.74760337]
[1747025822215,0.06307529,104050.0,104040.0,1.74760337]
[1747025823037,0.05346518,104050.0,104040.0,1.74760337]
[1747025823792,0.06307538,104050.0,104040.0,1.74760337]
[1747025824418,0.00214523,104050.0,104040.0,1.74760337]
[1747025824657,0.01175525,104050.0,104040.0,1.74760337]
[1747025825448,0.00214523,104050.0,104040.0,1.74760337]
[1747025825648,0.01175525,104050.0,104040.0,1.74760337]
[1747025826437,0.01175516,104050.0,104040.0,1.74760337]
[1747025826762,0.00214523,104050.0,104040.0,1.74760337]
[1747025827125,0.00214523,104050.0,104040.0,1.76350337]
[1747025829277,0.00214523,104050.0,104040.0,1.45619451]
[1747025829544,0.00214523,104050.0,104040.0,1.74760337]
[1747025829669,0.00214523,104050.0,104040.0,1.76300337]
[1747025830114,0.00214523,104050.0,104040.0,1.77940337]
[1747025830364,0.00214523,104050.0,104040.0,1.9251078]
[1747025830524,0.00214523,104050.0,104040.0,2.0374278]
[1747025831644,0.00214523,104050.0,104040.0,2.0474278]
[1747025831850,0.00214523,104050.0,104040.0,1.90072337]
[1747025832084,0.00214523,104050.0,104040.0,1.90472337]
[1747025835567,0.00214523,104050.0,104040.0,2.0504278]
[1747025836939,0.00214523,104050.0,104040.0,1.90472337]
[1747025837514,0.00214523,104050.0,104040.0,2.0504278]
[1747025838823,0.00214523,104050.0,104040.0,1.90472337]
[1747025839927,0.00214523,104050.0,104040.0,2.00057767]
[1747025842211,0.00214523,104050.0,104040.0,1.98417767]
[1747025843604,0.00214523,104050.0,104040.0,1.99987767]
[1747025843983,0.00214523,104050.0,104040.0,1.98417767]
[1747025846521,0.00214523,104050.0,104040.0,1.96877767]
[1747025846740,0.24478083,104050.0,104040.0,1.44036084]
[1747025846872,0.2543914,104050.0,104040.0,0.75760515]
[1747025847069,0.2543914,104050.0,104040.0,0.76721637]
[1747025847294,0.06217603,104050.0,104040.0,0.77682695]
[1747025847515,0.05256555,104050.0,104040.0,0.77682695]
[1747025847715,0.05256555,104050.0,104040.0,1.11682695]
[1747025848131,0.07178651,104050.0,104040.0,1.10682695]
[1747025849442,0.08139727,104050.0,104040.0,1.08760478]
[1747025849848,0.07178651,104050.0,104040.0,1.09721591]
[1747025850058,0.08139718,104050.0,104040.0,1.09721591]
[1747025850681,0.2736132,104050.0,104040.0,1.09721591]
[1747025850885,0.2640029,104050.0,104040.0,1.23330921]
[1747025851453,0.2640029,104050.0,104040.0,1.05386877]
[1747025851648,0.34063624,104050.0,104040.0,0.344]
[1747025852411,0.34063624,104050.0,104040.0,0.342]
[1747025853881,0.34063624,104050.0,104040.0,0.34]
[1747025854077,0.34063624,104050.0,104040.0,0.48570443]
[1747025854293,0.34063624,104050.0,104040.0,1.21410843]
[1747025855469,0.14842059,104050.0,104040.0,1.41748251]
[1747025855694,0.14842059,104050.0,104040.0,1.42709364]
[1747025855900,0.14842003,104050.0,104040.0,1.42709364]
[1747025856154,0.13880964,104050.0,104040.0,1.43670468]
[1747025856341,0.15803051,104050.0,104040.0,1.42709364]
[1747025856558,0.35024579,104050.0,104040.0,1.41748251]
[1747025856839,0.35024579,104050.0,104040.0,1.42709373]
[1747025857056,0.35024579,104050.0,104040.0,1.82709373]
[1747025857492,0.15803051,104050.0,104040.0,1.83670477]
[1747025857691,0.16764118,104050.0,104040.0,1.83670477]
[1747025857901,0.35985646,104050.0,104040.0,1.82709373]
[1747025858111,0.36946722,104050.0,104040.0,1.82709373]
[1747025858334,0.35985711,104050.0,104040.0,1.53568487]
[1747025858579,0.35024681,104050.0,104040.0,1.19042527]
[1747025858791,0.35024681,104050.0,104040.0,1.20003668]
[1747025859978,0.35024681,104050.0,104040.0,1.20964799]
[1747025860394,0.35024681,104050.0,104040.0,1.00182156]
[1747025860836,0.35024681,104050.0,104040.0,1.14752599]
[1747025861039,0.35024681,104050.0,104040.0,1.15713721]
[1747025861247,0.35024681,104050.0,104040.0,0.75713721]
[1747025861804,0.35024681,104050.0,104040.0,1.15713721]
[1747025862219,0.35024681,104050.0,104040.0,1.14752599]
[1747025863073,0.34063624,104050.0,104040.0,1.14752599]
[1747025863842,0.34063624,104050.0,104040.0,1.00182156]
[1747025864029,0.34063624,104050.0,104040.0,1.14752599]
[1747025864428,0.34063624,104050.0,104040.0,1.12830327]
[1747025864634,0.33102557,104050.0,104040.0,1.12830327]
[1747025864951,0.32141481,104050.0,104040.0,0.98259902]
[1747025865222,0.32141481,104050.0,104040.0,1.12830345]
[1747025865982,0.32141481,104050.0,104040.0,1.13874246]
[1747025866194,0.32141481,104050.0,104040.0,1.12830345]
[1747025871011,0.32141481,104050.0,104040.0,1.08024511]
[1747025871148,0.32141481,104050.0,104040.0,1.09948586]
[1747025871574,0.32141481,104050.0,104040.0,1.10909745]
[1747025872238,0.32141481,104050.0,104040.0,0.76909745]
[1747025873484,0.32141481,104050.0,104040.0,0.77870895]
[1747025875446,0.32141481,104050.0,104040.0,0.37870895]
[1747025875899,0.32141481,104050.0,104040.0,0.77870895]
[1747025877600,0.32141481,104050.0,104040.0,0.76909745]
[1747025877759,0.32141481,104050.0,104040.0,1.10909745]
[1747025878396,0.32141481,104050.0,104040.0,1.11953646]
[1747025878606,0.32141481,104050.0,104040.0,1.10909745]
[1747025879858,0.32141481,104050.0,104040.0,1.05142743]
[1747025883241,0.32141481,104050.0,104040.0,0.34]
[1747025884789,0.32816809,104050.0,104040.0,0.34]
[1747025890425,0.32141481,104050.0,104040.0,0.34]
[1747025891911,0.32141481,104050.0,104040.0,0.53376268]
[1747025892131,0.29982557,104050.0,104040.0,1.66573068]
[1747025892369,0.10761001,104050.0,104040.0,1.83065746]
[1747025892593,0.12683078,104050.0,104040.0,1.83065746]
[1747025892805,0.12683078,104050.0,104040.0,1.69539204]
[1747025892806,0.13644145,104050.0,104040.0,1.69539204]
[1747025893008,0.33826749,104050.0,104040.0,1.68495321]
[1747025893438,0.13644145,104050.0,104040.0,1.69456425]
[1747025893636,0.13644145,104050.0,104040.0,1.84026868]
[1747025894050,0.14605221,104050.0,104040.0,1.84026868]
[1747025894306,0.14605221,104050.0,104040.0,1.69456434]
[1747025894422,0.32865729,104050.0,104040.0,1.66573068]
[1747025894630,0.31904681,104050.0,104040.0,1.67534209]
[1747025895500,0.30943624,104050.0,104040.0,1.67534209]
[1747025895666,0.29982557,104050.0,104040.0,1.66573068]
[1747025896156,0.29982557,104050.0,104040.0,1.67534209]
[1747025897045,0.29982557,104050.0,104040.0,1.66573068]
[1747025898471,0.29982557,104050.0,104040.0,1.32573068]
[1747025899042,0.29982557,104050.0,104040.0,1.33534209]
[1747025899430,0.29982557,104050.0,104040.0,1.32573068]
[1747025899865,0.29982557,104050.0,104040.0,1.33534209]
[1747025900467,0.29021481,104050.0,104040.0,1.11641318]
[1747025900806,0.29021481,104050.0,104040.0,1.05144886]
[1747025901233,0.29021481,104050.0,104040.0,1.00092086]
[1747025902213,0.29021481,104050.0,104040.0,0.97035886]
[1747025902417,0.29021481,104050.0,104040.0,0.78055486]
[1747025902610,0.29021481,104050.0,104040.0,0.73414486]
[1747025902797,0.29021481,104050.0,104040.0,0.69569811]
[1747025903096,0.32191481,104050.0,104040.0,0.43501443]
[1747025903458,0.32191481,104050.0,104040.0,0.41326043]
[1747025904511,0.32191481,104050.0,104040.0,0.267556]
[1747025904715,0.32191481,104050.0,104040.0,0.456979]
[1747025907431,0.32191481,104050.0,104040.0,0.34]
[1747025912316,0.32191481,104050.0,104040.0,0.469116]
[1747025912513,0.32191481,104050.0,104040.0,0.34]
[1747025914844,0.32191481,104050.0,104040.0,0.47102]
[1747025916445,0.32191481,104050.0,104040.0,0.456414]
[1747025917921,0.32191481,104050.0,104040.0,0.34]
[1747025921420,0.32866775,104050.0,104040.0,0.34]
[1747025926638,0.3432086,104050.0,104040.0,0.34]
[1747025927835,0.3432086,104050.0,104040.0,0.33995745]
[1747025928328,0.4571286,104050.0,104040.0,0.33995745]
[1747025928999,0.4591286,104050.0,104040.0,0.33995745]
[1747025930463,0.3472086,104050.0,104040.0,0.35039646]
[1747025930708,0.31057777,104050.0,104040.0,0.81546974]
[1747025930892,0.31057777,104050.0,104040.0,0.82508133]
[1747025931352,0.30096775,104050.0,104040.0,0.81546974]
[1747025931562,0.29421481,104050.0,104040.0,0.77702299]
[1747025931758,0.29421481,104050.0,104040.0,0.82508133]
[1747025932140,0.29421481,104050.0,104040.0,0.6793769]
[1747025932739,0.29421481,104050.0,104040.0,0.60530688]
[1747025932956,0.32651481,104050.0,104040.0,0.60530688]
[1747025934584,0.32651481,104050.0,104040.0,0.61491856]
[1747025934796,0.32651481,104050.0,104040.0,0.6629769]
[1747025935150,0.32651481,104050.0,104040.0,0.45960245]
[1747025935352,0.32651481,104050.0,104040.0,0.33995745]
[1747025937277,0.43839481,104050.0,104040.0,0.33995745]
[1747025939849,0.45293566,104050.0,104040.0,0.33995745]
[1747025940923,0.45968722,104050.0,104040.0,0.33995745]
[1747025942125,0.57160722,104050.0,104040.0,0.33995745]
[1747025944540,0.57160727,104050.0,104040.0,0.33995745]
[1747025960224,0.19225223,104030.0,104020.0,0.55648085]
[1747025960416,0.20186474,104030.0,104020.0,0.74785096]
[1747025960681,0.20186474,104030.0,104020.0,0.57483653]
[1747025961009,0.29771904,104030.0,104020.0,0.03887642]
[1747025961209,0.0192279,104010.0,104000.0,2.26244054]
[1747025961415,0.02884217,104010.0,104000.0,2.94811697]
[1747025961624,0.02884217,104010.0,104000.0,2.92354397]
[1747025961840,0.03845653,104010.0,104000.0,3.4092484]
[1747025962044,0.0192279,104010.0,104000.0,3.29112632]
[1747025962239,0.0192278,104010.0,104000.0,3.29112632]
[1747025962443,0.01932083,104010.0,104000.0,3.29112632]
[1747025962702,0.02032083,104010.0,104000.0,3.29712632]
[1747025962910,0.02993501,104010.0,104000.0,3.29712632]
[1747025963108,0.02993501,104010.0,104000.0,3.29512632]
[1747025963515,0.03093501,104010.0,104000.0,3.29912632]
[1747025964093,0.03093483,104010.0,104000.0,3.29912632]
[1747025965640,0.03093473,104010.0,104000.0,3.29912632]
[1747025965988,0.02132074,104010.0,104000.0,3.29912632]
[1747025966132,0.03093483,104010.0,104000.0,3.29912632]
[1747025966569,0.02132074,104010.0,104000.0,3.29912632]
[1747025966776,0.03093483,104010.0,104000.0,3.29912632]
[1747025967052,0.03093473,104010.0,104000.0,3.29912632]
[1747025969241,0.02132074,104010.0,104000.0,3.29912632]
[1747025969471,0.01170684,104010.0,104000.0,3.29912632]
[1747025969799,0.02132083,104010.0,104000.0,3.29912632]
[1747025970196,0.01170684,104010.0,104000.0,3.29912632]
[1747025970431,0.02132083,104010.0,104000.0,3.29912632]
[1747025970897,0.01170684,104010.0,104000.0,3.29912632]
[1747025971111,0.02132083,104010.0,104000.0,3.29912632]
[1747025972789,0.02132074,104010.0,104000.0,3.29912632]
[1747025973986,0.01170675,104010.0,104000.0,3.29912632]
[1747025974208,0.02132065,104010.0,104000.0,3.29912632]
[1747025974969,0.01170675,104010.0,104000.0,3.29912632]
[1747025975177,0.00209303,104010.0,104000.0,3.44483075]
[1747025975385,0.00209303,104010.0,104000.0,3.29912632]
[1747025978645,0.00209303,104010.0,104000.0,3.06430112]
[1747025979272,0.00209303,104010.0,104000.0,3.10275627]
[1747025982784,0.01170665,104010.0,104000.0,3.10275627]
[1747025983004,0.00209303,104010.0,104000.0,3.10275627]
[1747025990849,0.01170665,104010.0,104000.0,2.81134741]
[1747025991060,0.01170665,104010.0,104000.0,3.10275627]
[1747025995091,0.02132046,104010.0,104000.0,3.10275627]
[1747025995781,0.07114854,104010.0,104000.0,2.74369084]
[1747025995986,0.06153436,104010.0,104000.0,2.81178827]
[1747025996181,0.07114845,104010.0,104000.0,2.81178827]
[1747025996540,0.06153436,104010.0,104000.0,2.81178827]
[1747025996766,0.07114845,104010.0,104000.0,2.81178827]
[1747025996973,0.06153436,104010.0,104000.0,2.81178827]
[1747025998434,0.07114845,104010.0,104000.0,2.81178827]
[1747025999021,0.07114835,104010.0,104000.0,2.52037941]
[1747025999195,0.07114835,104010.0,104000.0,2.81178827]
[1747025999890,0.06153436,104010.0,104000.0,2.81178827]
[1747026000368,0.05192046,104010.0,104000.0,2.81178827]
[1747026000571,0.02132046,104010.0,104000.0,2.81178827]
[1747026000999,0.00209303,104010.0,104000.0,2.81178827]
[1747026001188,0.01170675,104010.0,104000.0,2.82738827]
[1747026001391,0.00209303,104010.0,104000.0,2.9730927]
[1747026001594,0.00209303,104010.0,104000.0,2.9895927]
[1747026002598,0.00209303,104010.0,104000.0,2.84388827]
[1747026002807,0.00209303,104010.0,104000.0,2.87388827]
[1747026003428,0.00209303,104010.0,104000.0,2.85738827]
[1747026003664,0.00209303,104010.0,104000.0,2.88382728]
[1747026003870,0.00209303,104010.0,104000.0,3.0190927]
[1747026005212,0.00209303,104010.0,104000.0,3.114947]
[1747026006506,0.00209303,104010.0,104000.0,3.36924257]
[1747026006660,0.00209303,104010.0,104000.0,3.514947]
[1747026007066,0.01170675,104010.0,104000.0,3.24178827]
[1747026007273,0.01170675,104010.0,104000.0,2.6356503]
[1747026007274,0.05312074,104010.0,104000.0,2.6356503]
[1747026007484,0.25502495,104010.0,104000.0,2.42263931]
[1747026007684,0.34126526,104010.0,104000.0,2.08263931]
[1747026008059,0.34126526,104010.0,104000.0,2.20349331]
[1747026008060,0.46736611,104010.0,104000.0,2.20349331]
[1747026008268,0.56326526,104010.0,104000.0,2.31519774]
[1747026008450,0.56226526,104010.0,104000.0,2.16549331]
[1747026008653,0.56215361,104010.0,104000.0,2.16749331]
[1747026008865,0.33915361,104010.0,104000.0,2.17049331]
[1747026009076,0.56311361,104010.0,104000.0,2.16849331]
[1747026009285,0.57765446,104010.0,104000.0,2.16849331]
[1747026010283,0.57665446,104010.0,104000.0,2.16549331]
[1747026010497,0.57665446,104010.0,104000.0,2.16649331]
[1747026010703,0.57665446,104010.0,104000.0,2.16749331]
[1747026012647,0.57637362,104010.0,104000.0,2.16749331]
[1747026013954,0.57620557,104010.0,104000.0,2.16749331]
[1747026014745,0.57600368,104010.0,104000.0,2.16749331]
[1747026014954,0.57600368,104010.0,104000.0,2.16549331]
[1747026015368,0.57800368,104010.0,104000.0,2.16549331]
[1747026016145,0.57783563,104010.0,104000.0,2.16549331]
[1747026017967,0.57744199,104010.0,104000.0,2.16549331]
[1747026018824,0.57668291,104010.0,104000.0,2.16549331]
[1747026020867,0.57668291,104010.0,104000.0,2.14363633]
[1747026021082,0.72238734,104010.0,104000.0,1.80363633]
[1747026021858,0.58341174,104010.0,104000.0,1.80363633]
[1747026022056,0.58241174,104010.0,104000.0,1.80363633]
[1747026022259,0.58123533,104010.0,104000.0,1.80363633]
[1747026022679,0.58023533,104010.0,104000.0,1.80363633]
[1747026023076,0.58318007,104010.0,104000.0,1.80363633]
[1747026023506,0.58518007,104010.0,104000.0,1.80463633]
[1747026023922,0.8408845,104010.0,104000.0,1.80463633]
[1747026024336,0.97658893,104010.0,104000.0,1.80463633]
[1747026024529,0.8308845,104010.0,104000.0,1.80463633]
[1747026024759,0.8308845,104010.0,104000.0,1.5579207]
[1747026026339,0.8308845,104010.0,104000.0,1.56735971]
[1747026026340,0.46716481,104010.0,104000.0,1.56735971]
[1747026026540,0.68988481,104010.0,104000.0,1.5569207]
[1747026026706,0.84358924,104010.0,104000.0,1.5589207]
[1747026026908,0.8433084,104010.0,104000.0,1.5589207]
[1747026027368,0.69760397,104010.0,104000.0,1.5589207]
[1747026028338,0.69752051,104010.0,104000.0,1.5589207]
[1747026028550,1.38152051,104010.0,104000.0,1.5589207]
[1747026028969,1.38156051,104010.0,104000.0,1.5589207]
[1747026029154,1.38150525,104010.0,104000.0,1.5589207]
[1747026031221,1.38144999,104010.0,104000.0,1.5589207]
[1747026031812,1.60329258,104010.0,104000.0,1.5589207]
[1747026032612,1.14113517,104010.0,104000.0,1.5589207]
[1747026032813,1.13113517,104010.0,104000.0,1.5589207]
[1747026033212,1.13085433,104010.0,104000.0,1.5589207]
[1747026033508,1.12285433,104010.0,104000.0,1.5569207]
[1747026033907,1.12985433,104010.0,104000.0,1.5579207]
[1747026034297,1.13385433,104010.0,104000.0,1.5589207]
[1747026034496,1.23481448,104010.0,104000.0,1.5589207]
[1747026035619,1.23081448,104010.0,104000.0,1.5579207]
[1747026036203,1.23481448,104010.0,104000.0,1.5579207]
[1747026037108,1.33066878,104010.0,104000.0,1.5579207]
[1747026037314,1.23481448,104010.0,104000.0,1.5579207]
[1747026037681,1.13371448,104010.0,104000.0,1.5579207]
[1747026038802,0.91187189,104010.0,104000.0,1.5579207]
[1747026042130,0.81051189,104010.0,104000.0,1.5579207]
[1747026042302,0.5786693,104010.0,104000.0,1.5579207]
[1747026042509,0.92179189,104010.0,104000.0,1.5579207]
[1747026042710,0.91179189,104010.0,104000.0,1.5579207]
[1747026043837,0.92179189,104010.0,104000.0,1.5579207]
[1747026044247,0.91179189,104010.0,104000.0,1.5579207]
[1747026044869,0.92179189,104010.0,104000.0,1.5579207]
[1747026045897,0.91179189,104010.0,104000.0,1.5579207]
[1747026046502,0.92179189,104010.0,104000.0,1.5579207]
[1747026046701,0.91179189,104010.0,104000.0,1.5579207]
[1747026048244,0.92179189,104010.0,104000.0,1.5579207]
[1747026049350,0.92163189,104010.0,104000.0,1.5579207]
[1747026050678,0.91163189,104010.0,104000.0,1.5579207]